fUST/lending_fUST_20240705
["ID","MTS","AMOUNT","RATE_DAILY","PERIOD"]
[331229875,1720145453354,-1198.14,0.00049863,120]
[331229876,1720145453363,-500.0,0.00049863,120]
[331229877,1720145453372,-229.24452942,0.00049863,120]
[331229878,1720145453383,-500.0,0.00049863,120]
[331229879,1720145453394,-151.814379,0.00049863,14]
[331229880,1720145453403,-500.0,0.00049863,120]
[331229881,1720145453412,-603.34,0.00049863,120]
[331229882,1720145453422,-500.0,0.00049863,120]
[331229883,1720145453431,-151.814379,0.00049863,14]
[331229884,1720145453441,-500.0,0.00049863,120]
[331229885,1720145453450,-506.782505,0.00049863,120]
[331229886,1720145453459,-500.0,0.00049863,120]
[331229887,1720145453468,-151.0,0.00049863,14]
[331229888,1720145453476,-500.0,0.00049863,120]
[331229889,1720145453486,-4294.35,0.00049863,120]
[331229890,1720145453495,-500.0,0.00049863,120]
[331229891,1720145453504,-507.61048307,0.00049863,120]
[331229892,1720145453513,-151.0,0.00049863,14]
[331229893,1720145453522,-500.0,0.00049863,120]
[331229894,1720145453531,-501.48,0.00049863,120]
[331229895,1720145453540,-151.0,0.00049863,14]
[331229896,1720145453549,-500.0,0.00049863,120]
[331229897,1720145453558,-2192.52,0.00049863,120]
[331229898,1720145453567,-500.0,0.00049863,120]
[331229899,1720145453576,-500.0,0.00049863,120]
[331229900,1720145453585,-500.0,0.00049863,120]
[331229901,1720145453594,-735.27,0.00049863,120]
[331229902,1720145453605,-500.0,0.00049863,120]
[331229903,1720145453614,-500.0,0.00049863,120]
[331229904,1720145453623,-500.0,0.00049863,120]
[331229905,1720145453632,-1042.68,0.00049863,120]
[331229906,1720145453640,-151.0,0.00049863,14]
[331229907,1720145453650,-500.0,0.00049863,20]
[331229908,1720145453659,-500.0,0.00049863,120]
[331229909,1720145453667,-509.10993786,0.00049863,120]
[331229910,1720145453676,-187.689683,0.00049863,14]
[331229911,1720145453686,-500.0,0.00049863,120]
[331229912,1720145453695,-187.689683,0.00049863,14]
[331229913,1720145453705,-757.98,0.00049863,120]
[331229914,1720145453715,-1015.38,0.00049863,120]
[331229915,1720145453724,-500.0,0.00049863,120]
[331229916,1720145453734,-500.0,0.00049863,120]
[331229917,1720145453744,-500.0,0.00049863,120]
[331229918,1720145453754,-500.0,0.00049863,120]
[331229919,1720145453764,-500.0,0.00049863,120]
[331229920,1720145453774,-500.0,0.00049863,120]
[331229921,1720145453784,-500.0,0.00049863,120]
[331229922,1720145453793,-500.0,0.00049863,120]
[331229923,1720145453803,-388.65027511,0.00049863,120]
[331229924,1720145453812,-500.0,0.00049863,120]
[331229925,1720145453821,-500.0,0.00049863,120]
[331229926,1720145453831,-169.4,0.00049935,60]
[331229927,1720145453840,-154.82195475,0.0005,30]
[331229928,1720145453853,-4307.39142232,0.0005,60]
[331229929,1720145453862,-10249.0,0.0005,2]
[331229930,1720145453871,-1000.0,0.0005,120]
[331229931,1720145453879,-316.86789464,0.0005,120]
[331229932,1720145453888,-1500.0,0.0005,2]
[331229933,1720145453897,-1500.0,0.0005,2]
[331229934,1720145453905,-1500.0,0.0005,2]
[331229935,1720145453915,-1376.5,0.0005,2]
[331229936,1720145453924,-500.0,0.0005,120]
[331229937,1720145453933,-670.374499,0.0005,14]
[331229938,1720145453943,-670.374499,0.0005,14]
[331229939,1720145453952,-327.199807,0.0005,14]
[331229940,1720145453961,-327.199807,0.0005,14]
[331229941,1720145453970,-151.0,0.0005,14]
[331229942,1720145453979,-151.0,0.0005,14]
[331229943,1720145454082,-151.0,0.0005,14]
[331229944,1720145454092,-154.77557542,0.0005,4]
[331229945,1720145454104,-505.43776309,0.00050136,120]
[331229946,1720145454115,-500.0,0.00050136,120]
[331229947,1720145454125,-500.0,0.00050136,120]
[331229948,1720145454135,-404.82143328,0.00050136,120]
[331229949,1720145454144,-500.0,0.00050136,120]
[331229950,1720145454154,-500.98,0.00050136,120]
[331229951,1720145454163,-500.0,0.00050136,120]
[331229952,1720145454173,-500.0,0.00050136,120]
[331229953,1720145454183,-506.70710498,0.00050136,120]
[331229954,1720145454193,-506.24500487,0.00050136,120]
[331229955,1720145454203,-500.0,0.00050136,120]
[331229956,1720145454214,-500.0,0.00050136,120]
[331229957,1720145454224,-507.15956123,0.00050136,120]
[331229958,1720145454233,-500.0,0.00050136,120]
[331229959,1720145454242,-500.0,0.00050136,120]
[331229960,1720145454252,-507.60882356,0.00050136,120]
[331229961,1720145454262,-500.0,0.00050136,120]
[331229962,1720145454271,-500.0,0.00050136,120]
[331229963,1720145454281,-500.0,0.00050136,120]
[331229964,1720145454291,-500.0,0.00050136,120]
[331229965,1720145454300,-508.19719462,0.00050136,120]
[331229966,1720145454320,-509.90763603,0.00050136,120]
[331229967,1720145454329,-500.0,0.00050136,120]
[331229968,1720145454338,-322.82536197,0.00050136,120]
[331229969,1720145454350,-500.0,0.00050136,120]
[331229970,1720145454359,-500.0,0.00050136,120]
[331229971,1720145454372,-502.03318776,0.00050136,120]
[331229972,1720145454382,-2772.89,0.00050136,120]
[331229973,1720145454392,-500.0,0.00050136,120]
[331229974,1720145454402,-509.83119608,0.00050136,120]
[331229975,1720145454412,-500.0,0.00050136,120]
[331229976,1720145454422,-531.10345192,0.00050136,120]
[331229977,1720145454431,-298.61136616,0.00050136,120]
[331229978,1720145454441,-1300.52,0.00050136,120]
[331229979,1720145454451,-500.0,0.00050136,120]
[331229980,1720145454461,-500.0,0.00050136,120]
[331229981,1720145454471,-500.0,0.00050136,120]
[331229982,1720145454481,-500.0,0.00050136,120]
[331229983,1720145454491,-500.0,0.00050136,120]
[331229984,1720145454500,-1079.55,0.00050136,120]
[331229985,1720145454510,-500.0,0.00050136,120]
[331229986,1720145454520,-500.0,0.00050136,120]
[331229987,1720145454529,-505.67097682,0.00050136,120]
[331229988,1720145454539,-500.0,0.00050136,120]
[331229989,1720145454550,-500.0,0.00050136,120]
[331229990,1720145454560,-500.0,0.00050136,120]
[331229991,1720145454569,-500.0,0.00050136,120]
[331229992,1720145454579,-500.0,0.00050136,120]
[331229993,1720145454588,-503.1638338,0.00050136,120]
[331229994,1720145454601,-500.0,0.00050136,120]
[331229995,1720145454613,-500.0,0.00050136,120]
[331229996,1720145454623,-500.0,0.00050136,120]
[331229997,1720145454633,-500.0,0.00050136,120]
[331229998,1720145454643,-500.0,0.00050136,120]
[331229999,1720145454653,-2027.43770046,0.00050136,120]
[331230000,1720145454787,-2346.21229954,0.00050136,120]
[331230001,1720145454797,-500.0,0.00050136,120]
[331230002,1720145454806,-500.0,0.00050136,120]
[331230003,1720145454816,-1207.73,0.00050136,120]
[331230004,1720145454825,-500.0,0.00050136,120]
[331230005,1720145454835,-597.08762484,0.00050136,120]
[331230006,1720145454845,-344.34729475,0.00050136,120]
[331230007,1720145454858,-822.6,0.00050136,120]
[331230008,1720145454867,-318.45638852,0.00050136,120]
[331230009,1720145454876,-500.0,0.00050136,120]
[331230010,1720145454886,-500.0,0.00050136,120]
[331230011,1720145454895,-500.0,0.00050136,120]
[331230012,1720145454904,-500.0,0.00050136,120]
[331230013,1720145454913,-500.0,0.00050136,120]
[331230014,1720145454922,-605.06414014,0.00050136,120]
[331230015,1720145454932,-500.0,0.00050136,120]
[331230016,1720145454941,-233.87764385,0.00050136,120]
[331230017,1720145454951,-710.64,0.00050136,120]
[331230018,1720145454960,-618.27078814,0.00050136,120]
[331230019,1720145454970,-500.0,0.00050136,120]
[331230020,1720145454979,-500.0,0.00050136,120]
[331230021,1720145454988,-500.0,0.00050136,120]
[331230022,1720145454998,-515.51076798,0.00050136,120]
[331230023,1720145455008,-500.0,0.00050136,120]
[331230024,1720145455018,-500.0,0.00050136,120]
[331230025,1720145455029,-669.06,0.00050136,120]
[331230026,1720145455039,-500.0,0.00050136,120]
[331230027,1720145455050,-500.0,0.00050136,120]
[331230028,1720145455060,-500.0,0.00050136,120]
[331230029,1720145455070,-500.0,0.00050136,120]
[331230030,1720145455080,-500.0,0.00050136,120]
[331230031,1720145455090,-500.0,0.00050136,120]
[331230032,1720145455102,-500.0,0.00050136,120]
[331230033,1720145455115,-269.25,0.00050136,7]
[331230034,1720145455124,-500.0,0.00050136,120]
[331230035,1720145455134,-505.46885892,0.00050136,120]
[331230036,1720145455147,-500.0,0.00050136,120]
[331230037,1720145455157,-500.0,0.00050136,120]
[331230038,1720145455166,-151.0,0.00050136,14]
[331230039,1720145455176,-528.1,0.00050136,120]
[331230040,1720145455185,-500.0,0.00050136,120]
[331230041,1720145455194,-500.0,0.00050136,120]
[331230042,1720145455203,-161.211087,0.00050136,14]
[331230043,1720145455215,-161.211087,0.00050136,14]
[331230044,1720145455225,-500.0,0.00050136,120]
[331230045,1720145455235,-500.0,0.00050136,120]
[331230046,1720145455244,-500.0,0.00050136,120]
[331230047,1720145455254,-500.0,0.00050136,120]
[331230048,1720145455263,-500.0,0.00050136,120]
[331230049,1720145455273,-7594.49,0.00050136,120]
[331230050,1720145455282,-500.0,0.00050136,120]
[331230051,1720145455291,-500.0,0.00050136,120]
[331230052,1720145455301,-500.0,0.00050136,120]
[331230053,1720145455311,-500.0,0.00050136,120]
[331230054,1720145455321,-923.02,0.00050136,21]
[331230055,1720145455330,-500.0,0.00050136,120]
[331230056,1720145455340,-500.0,0.00050136,120]
[331230057,1720145455352,-570.15692153,0.00050136,120]
[331230058,1720145455361,-500.0,0.00050136,120]
[331230059,1720145455371,-1182.49,0.00050136,120]
[331230060,1720145455380,-511.89663039,0.00050136,120]
[331230061,1720145455389,-3999.24,0.00050136,120]
[331230062,1720145455399,-500.0,0.00050136,120]
[331230063,1720145455408,-500.0,0.00050136,120]
[331230064,1720145455417,-500.0,0.00050136,120]
[331230065,1720145455427,-500.0,0.00050136,120]
[331230066,1720145455435,-500.0,0.00050136,120]
[331230067,1720145455444,-511.41527576,0.00050136,120]
[331230068,1720145455453,-500.0,0.00050136,120]
[331230069,1720145455463,-1362.98,0.00050136,120]
[331230070,1720145455472,-500.0,0.00050136,120]
[331230071,1720145455481,-500.0,0.00050136,120]
[331230072,1720145455490,-500.0,0.00050136,120]
[331230073,1720145455499,-567.05,0.00050136,120]
[331230074,1720145455508,-500.0,0.00050136,120]
[331230075,1720145455517,-500.0,0.00050136,120]
[331230076,1720145455527,-609.9,0.00050136,120]
[331230077,1720145455536,-146.74313499,0.00050136,120]
[331230078,1720145455549,-353.25686501,0.00050136,120]
[331230079,1720145455558,-3012.81,0.00050136,120]
[331230080,1720145455567,-500.0,0.00050136,120]
[331230081,1720145455577,-500.0,0.00050136,120]
[331230082,1720145455586,-590.93325382,0.00050136,120]
[331230083,1720145455596,-503.33365977,0.00050136,120]
[331230084,1720145455609,-244.7618792,0.00050136,120]
[331230085,1720145455673,-658.45182307,0.00023966,2]
[331230086,1720145455682,-492.52354325,0.00023968,2]
[331230087,1720145455692,-500.0,0.00049315,120]
[331230088,1720145455702,-500.0,0.00049315,120]
[331230089,1720145455711,-500.0,0.00049589,120]
[331230090,1720145455720,-500.0,0.00049589,120]
[331230091,1720145455730,-500.0,0.00049863,120]
[331230092,1720145455739,-500.0,0.00049863,120]
[331230093,1720145455748,-500.0,0.00049863,120]
[331230094,1720145455758,-261.80752731,0.00050136,120]
[331230095,1720145455767,-500.0,0.00050136,120]
[331230096,1720145455776,-500.0,0.00050136,120]
[331230097,1720145455785,-2669.55,0.00050136,120]
[331230098,1720145455794,-151.0,0.00050136,14]
[331230099,1720145455803,-698.18,0.00050136,120]
[331230100,1720145455812,-151.0,0.00050136,14]
[331230101,1720145455821,-500.0,0.00050136,120]
[331230102,1720145455830,-500.0,0.00050136,60]
[331230103,1720145455839,-504.71496796,0.00050136,120]
[331230104,1720145455852,-507.41361354,0.00050136,120]
[331230105,1720145455861,-500.0,0.00050136,120]
[331230106,1720145455870,-500.0,0.00050136,120]
[331230107,1720145455880,-500.0,0.00050136,120]
[331230108,1720145455889,-161.299497,0.00050136,14]
[331230109,1720145455901,-1198.14,0.00050136,120]
[331230110,1720145455911,-500.0,0.00050136,120]
[331230111,1720145455921,-500.0,0.00050136,120]
[331230112,1720145455930,-151.814379,0.00050136,14]
[331230113,1720145455939,-505.24377575,0.00050136,120]
[331230114,1720145455948,-603.34,0.00050136,120]
[331230115,1720145455958,-500.0,0.00050136,120]
[331230116,1720145455967,-151.814379,0.00050136,14]
[331230117,1720145455976,-500.0,0.00050136,120]
[331230118,1720145455986,-500.0,0.00050136,120]
[331230119,1720145455995,-151.0,0.00050136,14]
[331230120,1720145456004,-504.80645529,0.00050136,120]
[331230121,1720145456013,-4294.35,0.00050136,120]
[331230122,1720145456024,-500.0,0.00050136,120]
[331230123,1720145456036,-151.0,0.00050136,14]
[331230124,1720145456045,-500.0,0.00050136,120]
[331230125,1720145456054,-501.48,0.00050136,120]
[331230126,1720145456063,-151.0,0.00050136,14]
[331230127,1720145456074,-500.0,0.00050136,120]
[331230128,1720145456083,-1071.20929276,0.00050136,120]
[331230129,1720145456146,-2865.4309312,0.00032169,4]
[331230130,1720145456155,-4136.6527888,0.00034562,4]
[331230131,1720145456164,-763.95101067,0.00050136,120]
[331230132,1720145456176,-357.35969657,0.00050136,120]
[331230133,1720145456185,-500.0,0.00050136,120]
[331230134,1720145456194,-28.66772843,0.00050136,120]
[331230135,1720145456478,-17247.80566422,0.00025869,2]
[331230136,1720145456488,-30000.0,0.00032169,2]
[331230137,1720145456497,-173.0,0.00032428,2]
[331230138,1720145456507,-173.0,0.00035428,2]
[331230139,1720145456516,-173.0,0.00038428,2]
[331230140,1720145456526,-2890.72940118,0.000488,90]
[331230141,1720145456535,-3962.51834704,0.000488,90]
[331230142,1720145456543,-153.0,0.00049288,120]
[331230143,1720145456553,-500.0,0.00049315,120]
[331230144,1720145456562,-500.0,0.00049315,120]
[331230145,1720145456571,-500.0,0.00049589,120]
[331230146,1720145456580,-471.33227157,0.00050136,120]
[331230147,1720145456589,-500.0,0.00050136,120]
[331230148,1720145456600,-735.27,0.00050136,120]
[331230149,1720145456610,-500.0,0.00050136,120]
[331230150,1720145456619,-500.0,0.00050136,120]
[331230151,1720145456628,-500.0,0.00050136,120]
[331230152,1720145456638,-1042.68,0.00050136,120]
[331230153,1720145456647,-151.0,0.00050136,14]
[331230154,1720145456656,-500.0,0.00050136,20]
[331230155,1720145456665,-500.0,0.00050136,120]
[331230156,1720145456674,-187.689683,0.00050136,14]
[331230157,1720145456683,-500.0,0.00050136,120]
[331230158,1720145456692,-187.689683,0.00050136,14]
[331230159,1720145456701,-757.98,0.00050136,120]
[331230160,1720145456710,-1015.38,0.00050136,120]
[331230161,1720145456719,-500.0,0.00050136,120]
[331230162,1720145456728,-500.0,0.00050136,120]
[331230163,1720145456737,-500.0,0.00050136,120]
[331230164,1720145456747,-500.0,0.00050136,120]
[331230165,1720145456756,-500.0,0.00050136,120]
[331230166,1720145456765,-500.0,0.00050136,120]
[331230167,1720145456774,-503.9167095,0.00050136,120]
[331230168,1720145456783,-500.0,0.00050136,120]
[331230169,1720145456792,-500.0,0.00050136,120]
[331230170,1720145456802,-500.0,0.00050136,120]
[331230171,1720145456811,-500.0,0.00050136,120]
[331230172,1720145456820,-500.0,0.00050136,120]
[331230173,1720145456829,-501.54342458,0.00050136,120]
[331230174,1720145456839,-150.62364424,0.00050314,60]
[331230175,1720145456848,-151.0,0.00050356,120]
[331230176,1720145456857,-505.30921427,0.0005041,120]
[331230177,1720145456866,-500.0,0.0005041,120]
[331230178,1720145456875,-500.0,0.0005041,120]
[331230179,1720145456885,-500.98,0.0005041,120]
[331230180,1720145456893,-500.0,0.0005041,120]
[331230181,1720145456903,-545.38055172,0.0005041,120]
[331230182,1720145456912,-500.0,0.0005041,120]
[331230183,1720145456921,-518.76717834,0.0005041,120]
[331230184,1720145456930,-500.0,0.0005041,120]
[331230185,1720145456939,-500.0,0.0005041,120]
[331230186,1720145456948,-500.0,0.0005041,120]
[331230187,1720145456957,-500.0,0.0005041,120]
[331230188,1720145456967,-535.7687866,0.0005041,120]
[331230189,1720145456978,-506.14505813,0.0005041,120]
[331230190,1720145456987,-505.43824498,0.0005041,120]
[331230191,1720145456996,-500.0,0.0005041,120]
[331230192,1720145457005,-500.0,0.0005041,120]
[331230193,1720145457014,-2772.89,0.0005041,120]
[331230194,1720145457024,-500.0,0.0005041,120]
[331230195,1720145457034,-500.0,0.0005041,120]
[331230196,1720145457048,-1300.52,0.0005041,120]
[331230197,1720145457058,-500.0,0.0005041,120]
[331230198,1720145457067,-500.0,0.0005041,120]
[331230199,1720145457077,-500.0,0.0005041,120]
[331230200,1720145457086,-507.16941229,0.0005041,120]
[331230201,1720145457095,-500.0,0.0005041,120]
[331230202,1720145457106,-1079.55,0.0005041,120]
[331230203,1720145457116,-500.0,0.0005041,120]
[331230204,1720145457126,-192.72362496,0.0005041,120]
[331230205,1720145457135,-500.0,0.0005041,120]
[331230206,1720145457145,-504.69190458,0.0005041,120]
[331230207,1720145457156,-500.0,0.0005041,120]
[331230208,1720145457165,-500.0,0.0005041,120]
[331230209,1720145457174,-285.19700255,0.0005041,120]
[331230210,1720145457183,-500.0,0.0005041,120]
[331230211,1720145457192,-500.0,0.0005041,120]
[331230212,1720145457201,-500.0,0.0005041,120]
[331230213,1720145457210,-500.0,0.0005041,120]
[331230214,1720145457220,-4373.65,0.0005041,120]
[331230215,1720145457230,-514.87252717,0.0005041,120]
[331230216,1720145457239,-500.0,0.0005041,120]
[331230217,1720145457248,-1207.73,0.0005041,120]
[331230218,1720145457257,-509.30633156,0.0005041,120]
[331230219,1720145457266,-822.6,0.0005041,120]
[331230220,1720145457276,-500.0,0.0005041,120]
[331230221,1720145457285,-151.0,0.0005041,14]
[331230222,1720145457295,-500.0,0.0005041,120]
[331230223,1720145457304,-511.41087751,0.0005041,120]
[331230224,1720145457313,-507.57349563,0.0005041,120]
[331230225,1720145457322,-256.777761,0.0005041,14]
[331230226,1720145457332,-243.68323113,0.0005041,120]
[331230227,1720145457341,-256.777761,0.0005041,14]
[331230228,1720145457351,-152.345828,0.0005041,14]
[331230229,1720145457361,-500.0,0.0005041,120]
[331230230,1720145457370,-710.64,0.0005041,120]
[331230231,1720145457380,-167.693916,0.0005041,14]
[331230232,1720145457390,-500.0,0.0005041,120]
[331230233,1720145457399,-151.0,0.0005041,14]
[331230234,1720145457408,-167.693916,0.0005041,14]
[331230235,1720145457417,-151.0,0.0005041,14]
[331230236,1720145457426,-151.0,0.0005041,14]
[331230237,1720145457435,-500.0,0.0005041,120]
[331230238,1720145457445,-500.0,0.0005041,120]
[331230239,1720145457454,-151.0,0.0005041,14]
[331230240,1720145457463,-500.0,0.0005041,120]
[331230241,1720145457472,-500.0,0.0005041,120]
[331230242,1720145457482,-669.06,0.0005041,120]
[331230243,1720145457491,-500.0,0.0005041,120]
[331230244,1720145457500,-500.0,0.0005041,120]
[331230245,1720145457509,-500.0,0.0005041,120]
[331230246,1720145457518,-164.69389707,0.0005041,120]
[331230247,1720145457529,-527.6888479,0.0005041,120]
[331230248,1720145457539,-500.0,0.0005041,120]
[331230249,1720145457548,-500.0,0.0005041,120]
[331230250,1720145457559,-269.25,0.0005041,7]
[331230251,1720145457568,-500.0,0.0005041,120]
[331230252,1720145457578,-503.82819712,0.0005041,120]
[331230253,1720145457588,-500.0,0.0005041,120]
[331230254,1720145457598,-151.0,0.0005041,14]
[331230255,1720145457609,-528.1,0.0005041,120]
[331230256,1720145457618,-500.0,0.0005041,120]
[331230257,1720145457628,-500.0,0.0005041,120]
[331230258,1720145457637,-161.211087,0.0005041,14]
[331230259,1720145457647,-161.211087,0.0005041,14]
[331230260,1720145457655,-644.385506,0.0005041,120]
[331230261,1720145457665,-500.0,0.0005041,120]
[331230262,1720145457674,-670.374499,0.0005041,14]
[331230263,1720145457683,-579.4297591,0.0005041,120]
[331230264,1720145457692,-500.0,0.0005041,120]
[331230265,1720145457700,-500.0,0.0005041,120]
[331230266,1720145457709,-670.374499,0.0005041,14]
[331230267,1720145457718,-7594.49,0.0005041,120]
[331230268,1720145457727,-500.0,0.0005041,120]
[331230269,1720145457735,-500.0,0.0005041,120]
[331230270,1720145457744,-500.0,0.0005041,120]
[331230271,1720145457752,-500.0,0.0005041,120]
[331230272,1720145457762,-327.199807,0.0005041,14]
[331230273,1720145457771,-327.199807,0.0005041,14]
[331230274,1720145457780,-923.02,0.0005041,21]
[331230275,1720145457789,-500.0,0.0005041,120]
[331230276,1720145457798,-500.0,0.0005041,120]
[331230277,1720145457807,-500.0,0.0005041,120]
[331230278,1720145457816,-1182.49,0.0005041,120]
[331230279,1720145457825,-3999.24,0.0005041,120]
[331230280,1720145457833,-500.0,0.0005041,120]
[331230281,1720145457842,-500.0,0.0005041,120]
[331230282,1720145457853,-500.0,0.0005041,120]
[331230283,1720145457862,-500.0,0.0005041,120]
[331230284,1720145457871,-500.0,0.0005041,120]
[331230285,1720145457880,-500.0,0.0005041,120]
[331230286,1720145457889,-1362.98,0.0005041,120]
[331230287,1720145457898,-500.0,0.0005041,120]
[331230288,1720145457907,-151.0,0.0005041,14]
[331230289,1720145457915,-500.0,0.0005041,120]
[331230290,1720145457924,-151.0,0.0005041,14]
[331230291,1720145457933,-567.05,0.0005041,120]
[331230292,1720145457942,-500.0,0.0005041,120]
[331230293,1720145457951,-500.0,0.0005041,120]
[331230294,1720145457960,-151.0,0.0005041,14]
[331230295,1720145457969,-609.9,0.0005041,120]
[331230296,1720145457978,-195.814252,0.0005041,14]
[331230297,1720145457988,-151.0,0.0005041,14]
[331230298,1720145457997,-500.0,0.0005041,120]
[331230299,1720145458005,-195.814252,0.0005041,14]
[331230300,1720145458014,-3012.81,0.0005041,120]
[331230301,1720145458025,-151.0,0.0005041,14]
[331230302,1720145458036,-500.0,0.0005041,120]
[331230303,1720145458045,-500.0,0.0005041,120]
[331230304,1720145458054,-510.89072769,0.0005041,120]
[331230305,1720145458063,-516.80528768,0.0005041,120]
[331230306,1720145458074,-2669.55,0.0005041,120]
[331230307,1720145458083,-698.18,0.0005041,120]
[331230308,1720145458092,-520.19782654,0.0005041,120]
[331230309,1720145458102,-504.69743416,0.0005041,60]
[331230310,1720145458111,-500.0,0.0005041,120]
[331230311,1720145458120,-500.0,0.0005041,120]
[331230312,1720145458129,-505.20477574,0.0005041,120]
[331230313,1720145458142,-1198.14,0.0005041,120]
[331230314,1720145458151,-527.11758864,0.0005041,120]
[331230315,1720145458159,-500.0,0.0005041,120]
[331230316,1720145458168,-603.34,0.0005041,120]
[331230317,1720145458178,-421.94878635,0.0005041,120]
[331230318,1720145458186,-500.0,0.0005041,120]
[331230319,1720145458196,-500.0,0.0005041,120]
[331230320,1720145458205,-4294.35,0.0005041,120]
[331230321,1720145458214,-500.0,0.0005041,120]
[331230322,1720145458224,-512.13257802,0.0005041,120]
[331230323,1720145458234,-501.48,0.0005041,120]
[331230324,1720145458244,-495.75401028,0.0005041,120]
[331230325,1720145458253,-2192.52,0.0005041,120]
[331230326,1720145458263,-377.17310558,0.0005041,120]
[331230327,1720145458273,-503.03187102,0.0005041,120]
[331230328,1720145458283,-505.75698883,0.0005041,120]
[331230329,1720145458292,-735.27,0.0005041,120]
[331230330,1720145458302,-509.84330955,0.0005041,120]
[331230331,1720145458312,-500.0,0.0005041,120]
[331230332,1720145458322,-1042.68,0.0005041,120]
[331230333,1720145458332,-504.95054944,0.0005041,120]
[331230334,1720145458342,-151.0,0.0005041,14]
[331230335,1720145458356,-500.0,0.0005041,20]
[331230336,1720145458366,-500.0,0.0005041,120]
[331230337,1720145458377,-187.689683,0.0005041,14]
[331230338,1720145458387,-384.76527059,0.0005041,120]
[331230339,1720145458397,-187.689683,0.0005041,14]
[331230340,1720145458407,-757.98,0.0005041,120]
[331230341,1720145458417,-1015.38,0.0005041,120]
[331230342,1720145458427,-500.0,0.0005041,120]
[331230343,1720145458437,-500.0,0.0005041,120]
[331230344,1720145458447,-619.32942883,0.0005041,120]
[331230345,1720145458456,-500.0,0.0005041,120]
[331230346,1720145458466,-500.0,0.0005041,120]
[331230347,1720145458475,-500.0,0.0005041,120]
[331230348,1720145458578,-312.38827985,0.0005041,120]
[331230349,1720145458589,-500.0,0.0005041,120]
[331230350,1720145458602,-500.0,0.0005041,120]
[331230351,1720145458614,-549.74164956,0.0005041,120]
[331230352,1720145458624,-500.0,0.0005041,120]
[331230353,1720145458635,-154.0,0.00050486,120]
[331230354,1720145458645,-500.0,0.00050684,120]
[331230355,1720145458655,-503.53995982,0.00050684,120]
[331230356,1720145458665,-500.98,0.00050684,120]
[331230357,1720145458675,-506.00920005,0.00050684,120]
[331230358,1720145458685,-614.38464027,0.00050684,120]
[331230359,1720145458694,-500.0,0.00050684,120]
[331230360,1720145458704,-500.0,0.00050684,120]
[331230361,1720145458714,-500.0,0.00050684,120]
[331230362,1720145458724,-212.85526568,0.00050684,120]
[331230363,1720145458734,-500.0,0.00050684,120]
[331230364,1720145458743,-502.24921702,0.00050684,120]
[331230365,1720145458752,-2772.89,0.00050684,120]
[331230366,1720145458762,-500.0,0.00050684,120]
[331230367,1720145458771,-503.93305185,0.00050684,120]
[331230368,1720145458781,-1300.52,0.00050684,120]
[331230369,1720145458791,-500.0,0.00050684,120]
[331230370,1720145458801,-593.16793333,0.00050684,120]
[331230371,1720145458811,-435.43965224,0.00050684,120]
[331230372,1720145458821,-512.69913076,0.00050684,120]
[331230373,1720145458830,-1079.55,0.00050684,120]
[331230374,1720145458840,-500.0,0.00050684,120]